Cogmind - Beta 17.1 @@@ ROGUE MODE // 2026.08.30 @ 19:43:26 Player: Petvaria Result: Self-destructed Performance ------------- Evolutions (0) 0 Regions Visited (4) 800 Robots Destroyed (49) 245 Value Destroyed (1222) 1222 Prototype IDs (15) 300 Alien Tech Used (0) 0 Bonus (177) 177 TOTAL SCORE: 2744 Bonus ------- Registered with UFD 300 Friendly Fire -123 Cogmind --------- Core Integrity 26/250 Matter 290/300 Energy 200/200 System Corruption 0% Temperature Cool (0) Movement Treading (320) Ox2 Location -7/Scraptown Parts ------- > --- POWER (1) -------- Subdweller Power Source > --- PROPULSION (2) --- Light Treads Medium Treads > --- UTILITY (2) ------ Huge Storage Unit Medium Reactive Plating > --- WEAPON (2) ------- Battle Cannon Makeshift Axe > --- INVENTORY (25) --- Subdweller Power Source Subdweller Power Source Subdweller Monowheel Improved Cooling System Disposable Heat Sink Compact Matter Pod (150) Machine Analyzer Improved Terrain Scanner Core Analyzer Weapon Cycler Weapon Cycler Medium Reactive Plating Medium Reactive Plating Medium Reactive Plating Hacking Suite Medium Laser Beamcaster Subdweller Machine Gun Subdweller Machine Gun Subdweller Machine Gun Subdweller Machine Gun Barrage Gun Heavy Machine Gun Gauss Cannon Multitool Peak State ------------ > --- POWER ------------ Subdweller Power Source > --- PROPULSION ------- Light Treads Medium Treads > --- UTILITY ---------- Huge Storage Unit Medium Reactive Plating > --- WEAPON ----------- Battle Cannon Makeshift Axe > --- INVENTORY -------- Subdweller Power Source Subdweller Power Source Light Treads Subdweller Monowheel Improved Cooling System Disposable Heat Sink Compact Matter Pod Machine Analyzer Core Analyzer Weapon Cycler Weapon Cycler Medium Reactive Plating Medium Reactive Plating Medium Reactive Plating Hacking Suite Medium Laser Small Laser Beamcaster Subdweller Machine Gun Subdweller Machine Gun Subdweller Machine Gun Subdweller Machine Gun Barrage Gun Gauss Cannon Multitool [Rating: 25] Favorites ----------- Power Ion Engine Engine Ion Engine Propulsion Light Treads Treads Light Treads Utility Huge Storage Unit Device Disposable Heat Sink Storage Huge Storage Unit Protection Medium Reactive Plating Weapon Battle Cannon Energy Gun Beamcaster Ballistic Gun Battle Rifle Ballistic Cannon Battle Cannon Slashing Weapon Makeshift Axe Build | -11 -10 -10 -7 -7 ------- Run | Yrd Mat Sub Rec Scr Slots Evolved . | . . . . . Power . | . . . . . Propulsion . | . . . . . Utility . | . . . . . Weapon . | . . . . . Parts Attached 32 | 7 8 15 1 1 Power 4 | 1 1 2 . . Engine 4 | 1 1 2 . . Core . | . . . . . Reactor . | . . . . . Propulsion 7 | 2 2 2 . 1 Treads 7 | 2 2 2 . 1 Leg . | . . . . . Wheel . | . . . . . Hover . | . . . . . Flight . | . . . . . Utility 12 | 2 5 4 1 . Device 3 | 1 . 2 . . Storage 4 | 1 2 1 . . Processor . | . . . . . Hackware . | . . . . . Protection 5 | . 3 1 1 . Artifact . | . . . . . Weapon 9 | 2 . 7 . . Energy Gun 2 | 1 . 1 . . Energy Cannon . | . . . . . Ballistic Gun 5 | 1 . 4 . . Ballistic Cannon 1 | . . 1 . . Launcher . | . . . . . Special Weapon . | . . . . . Impact Weapon . | . . . . . Slashing Weapon 1 | . . 1 . . Piercing Weapon . | . . . . . Special Melee Weapon . | . . . . . Unidentified Prototypes . | . . . . . Parts Lost 8 | . . 8 . . Power 2 | . . 2 . . Propulsion 3 | . . 3 . . Utility 1 | . . 1 . . Weapon 2 | . . 2 . . Highest Loss Streak 2 | . . 2 . . To Critical Strikes 1 | . . 1 . . Average Backups 12 | 3 9 5 19 24 Power 1 | 1 1 . 2 2 Propulsion 1 | 1 3 1 1 1 Utility 3 | . 2 . 6 11 Weapon 5 | . 2 3 9 9 Tool/Special . | . . . . . Unused Backups 28 | . 4 . 1 23 Power 3 | . 1 . . 2 Propulsion 3 | . 2 . . 1 Utility 11 | . . . . 11 Weapon 10 | . 1 . 1 8 Tool/Special 1 | . . . . 1 Average Slot Usage (%) 92 | . 100 84 100 100 Engine 13 | . 14 13 14 14 Treads 27 | . 28 26 28 28 Device 4 | . 12 4 2 . Storage 8 | . 14 1 14 14 Protection 9 | . 1 8 11 14 Energy Gun 9 | . 14 11 11 . Ballistic Gun 7 | . 14 12 . . Ballistic Cannon 7 | . . 4 14 14 Slashing Weapon 3 | . . . 2 14 Peak Build Rating 25 | 7 8 16 22 25 Average Rating 15 | 5 7 13 20 23 On Entrance 10 | . 7 8 16 21 Avg Prop Armor Cover (%) . | . . . . . Naked Turns . | . . . . . Heaviest Build 113 | 15 30 94 113 111 Greatest Support 48 | 40 40 40 40 48 Greatest Overweight (x) 2 | . . 2 2 2 Average Overweight (x) . | . . . 2 2 Largest Inventory Capacity 25 | 8 15 25 25 25 Average Capacity 14 | 7 9 7 25 25 Most Carried 25 | 6 11 13 24 25 Average Carried 12 | 3 9 5 19 24 Final Capacity 25 | 8 15 25 25 25 Final Carried 25 | 5 11 13 24 25 Class Distribution -------------------- 60% | Mutant 39% | Scavenger-Mutant Dominant Class ---------------- Scavenger-Mutant | -10/Materials Scavenger-Mutant | -10/Subcaves Mutant | -7/Recycling Mutant | -7/Scraptown Resources | -11 -10 -10 -7 -7 ----------- Run | Yrd Mat Sub Rec Scr Matter Collected 1525 | 288 349 717 171 . Remotely . | . . . . . Salvage Created 1567 | 158 677 732 . . Parts 96 | 12 42 42 . . Haulers Intercepted 2 | . 2 . . . Recyclers Shooed 3 | . 3 . . . Parts Field Recycled . | . . . . . Retrieved Matter . | . . . . . Parts Self-Destructed 21 | . . 21 . . Prevented . | . . . . . Parts Restored . | . . . . . Kills | -11 -10 -10 -7 -7 ------- Run | Yrd Mat Sub Rec Scr Combat Hostiles Destroyed 36 | . 17 19 . . Guns 34 | . 17 17 . . Cannons 2 | . . 2 . . Classes Destroyed 11 | 2 5 4 . . Worker 2 | . 2 . . . Tunneler 4 | 4 . . . . Hauler 2 | . 2 . . . Recycler 1 | 1 . . . . Turret 2 | . . 2 . . Watcher 1 | . 1 . . . Swarmer 10 | . 6 4 . . Grunt 13 | . 11 2 . . Sentry 1 | . . 1 . . Artisan 1 | . . 1 . . Subdweller 12 | . . 12 . . Thug 1 | . . 1 . . Best Kill Streak 6 | 3 3 6 . . Combat Bots Only 4 | . 3 4 . . Max Kills in Single Turn 2 | 2 1 2 . . Gunslinging 1 | . . 1 . . Exploded . | . . . . . Melee . | . . . . . Uniques/NPCs Destroyed . | . . . . . Combat | -11 -10 -10 -7 -7 -------- Run | Yrd Mat Sub Rec Scr Hostile Shots Fired 223 | . 59 164 . . Missed 63 | . 15 48 . . Hits 160 | . 44 116 . . Projectile 160 | . 44 116 . . AOE 1 | . . 1 . . Critical Strikes 3 | . 1 2 . . Damage Taken 2173 | . 447 1726 . . Core 224 | . 74 150 . . Absorbed by Shields . | . . . . . Core Remaining (%) 100 | 100 . . . . Volleys Fired 171 | 6 48 116 1 . Largest 2 | 2 2 2 1 . Hottest 108 | 70 70 108 33 . Shots Fired 311 | 12 96 202 1 . Gun 269 | 12 96 161 . . Cannon 42 | . . 41 1 . Launcher . | . . . . . Special . | . . . . . Kinetic 194 | 6 48 139 1 . Thermal 117 | 6 48 63 . . Explosive . | . . . . . Electromagnetic . | . . . . . Robot Hit Streak 29 | 3 10 29 . . Robot Miss Streak 3 | 1 2 3 . . Penetration Max . | . . . . . Secondary Targets 4 | . 1 3 . . Max Gunslinging Chain 1 | . 1 1 . . Shots Hit Robots 202 | 7 71 124 . . Core Hits 78 | 6 34 37 1 . Critical Kills 1 | . . 1 . . Critical Parts Destroyed 1 | . . 1 . . Critical Strikes 11 | . 3 8 . . Burn 8 | . 3 5 . . Destroy 2 | . . 2 . . Blast 1 | . . 1 . . Melee Attacks 6 | . . 1 5 . Impact . | . . . . . Slashing 6 | . . 1 5 . Piercing . | . . . . . Sneak Attacks . | . . . . . Combat Hostiles . | . . . . . Follow-up Attacks . | . . . . . Damage Inflicted 3275 | 102 938 2233 2 . Guns 2982 | 96 903 1983 . . Cannons 250 | . . 250 . . Explosions . | . . . . . Melee . | . . . . . Ramming 43 | 6 35 . 2 . Kinetic 1584 | 34 386 1164 . . Thermal 1648 | 62 517 1069 . . Explosive . | . . . . . Electromagnetic . | . . . . . Impact . | . . . . . Slashing . | . . . . . Piercing . | . . . . . Highest Corruption . | . . . . . Average Corruption . | . . . . . Corruption Purged . | . . . . . Corruption Blocked . | . . . . . Overload Shots . | . . . . . Overflow Damage . | . . . . . Projectiles . | . . . . . Explosions . | . . . . . Melee . | . . . . . Knockbacks 2 | . . 2 . . Impact . | . . . . . Kinetic 2 | . . 2 . . Secondary . | . . . . . Self-Inflicted Damage . | . . . . . Shots . | . . . . . Rammed 9 | 1 7 . 1 . Targets Rammed 11 | 1 9 . 1 . Kicked . | . . . . . Crushed 2 | . 2 . . . Highest Temperature 144 | 27 144 78 . . Average Temperature 39 | 12 49 20 . . Received Heat Transfer 543 | . 177 366 . . Siege Activations . | . . . . . Martial Activations . | . . . . . Shielding Activations . | . . . . . Robots Disrupted . | . . . . . Combat Hostiles . | . . . . . Robots Corrupted . | . . . . . Combat Hostiles . | . . . . . Parts Fried . | . . . . . Impact Corruptions . | . . . . . Robots Melted . | . . . . . Combat Hostiles . | . . . . . Parts Melted 8 | . 8 . . . Heat Transferred 4181 | 185 1739 2257 . . Parts Sabotaged . | . . . . . Parts Stolen . | . . . . . Parts Stripped . | . . . . . Power Chain Reactions . | . . . . . Alert | -11 -10 -10 -7 -7 ------- Run | Yrd Mat Sub Rec Scr Maximum Alert Level . | . . . . . Low Security (%) 100 | 100 100 . 100 . Level 1 . | . . . . . Level 2 . | . . . . . Level 3 . | . . . . . Level 4 . | . . . . . Level 5 . | . . . . . High Security . | . . . . . Max Security . | . . . . . Peak Influence 181 | 15 181 . 52 . Initial 33 | . . . 33 . Average 50 | 2 109 . 4 . Influence Increases 939 | 25 523 265 126 . Destroy 0b10 Robot/C 520 | . 340 180 . . Destroy 0b10 Robot/NC 50 | 25 25 . . . Destroy Leader 86 | . 76 10 . . Successful Hack 34 | . 34 . . . Select Force Hacks 120 | . . . 120 . Destroy Structure 9 | . 3 . 6 . Partial Spotted 15 | . 15 . . . Lose Combat Pursuer 105 | . 30 75 . . Influence Decreases 939 | 25 420 297 197 . Entered New Map 89 | . . 51 38 . Time Decay 790 | 25 420 186 159 . Lost Part 60 | . . 60 . . Squads Dispatched 3 | . 3 . . . Investigation 1 | . 1 . . . Extermination . | . . . . . Reinforcement 2 | . 2 . . . Assault . | . . . . . Garrison . | . . . . . Intercept . | . . . . . Searches Triggered . | . . . . . Construction Impeded . | . . . . . Haulers Reinforced . | . . . . . Active Scanning Responses . | . . . . . Cargo Convoy Interrupts . | . . . . . Stealth | -11 -10 -10 -7 -7 --------- Run | Yrd Mat Sub Rec Scr Distress Signals 3 | . 3 . . . Communications Jammed . | . . . . . Distress Signals . | . . . . . Times Spotted 62 | . 33 29 . . Peak Tracking Total 4 | . 4 4 . . Tactical Retreats 4 | . 1 3 . . Traps | -11 -10 -10 -7 -7 ------- Run | Yrd Mat Sub Rec Scr Traps Triggered 3 | . 1 2 . . Indirectly . | . . . . . Trap Hack Attempts . | . . . . . Triggered . | . . . . . Disarmed . | . . . . . Reprogrammed . | . . . . . Reused . | . . . . . Traps Extracted . | . . . . . Installed . | . . . . . Triggered . | . . . . . Machines | -11 -10 -10 -7 -7 ---------- Run | Yrd Mat Sub Rec Scr Machines Disabled 1 | . . 1 . . Max in Single Turn 1 | . . 1 . . Machines Repaired . | . . . . . Machines Dismantled . | . . . . . Machines Sabotaged . | . . . . . Overloaded Fab Kills . | . . . . . Hacking | -11 -10 -10 -7 -7 --------- Run | Yrd Mat Sub Rec Scr Machines Accessed 15 | . 7 2 5 1 Terminals 7 | . 6 . 1 . Fabricators . | . . . . . Repair Stations 1 | . 1 . . . Recycling Units 4 | . . . 4 . Scanalyzers . | . . . . . Garrison Access . | . . . . . Total Hacks 34 | . 18 4 7 5 Successful 23 | . 8 4 6 5 Failed 11 | . 10 . 1 . Catastrophic 1 | . . . 1 . Database Lockouts . | . . . . . Manual 22 | . 15 . 7 . Terminals 17 | . 15 . 2 . Fabricators . | . . . . . Repair Stations 3 | . 3 . . . Recycling Units 5 | . . . 5 . Scanalyzers . | . . . . . Garrison Access . | . . . . . Terminal Hacks 11 | . 1 4 1 5 Record 3 | . . 3 . . Part Schematic 1 | . 1 . . . Robot Analysis 5 | . . . . 5 Unreport Threat 1 | . . . 1 . Proto ID Catalog 1 | . . 1 . . Fabricator Hacks . | . . . . . Repair Station Hacks 1 | . 1 . . . Scan Component 1 | . 1 . . . Recycling Unit Hacks . | . . . . . Scanalyzer . | . . . . . Garrison Access Hacks . | . . . . . Unauthorized Hacks 10 | . 6 . 4 . Terminals 6 | . 6 . . . Botnet 1 | . 1 . . . Skim 5 | . 5 . . . Fabricators . | . . . . . Repair Stations . | . . . . . Recycling Units 4 | . . . 4 . Tunnel 4 | . . . 4 . Scanalyzers . | . . . . . Garrison Access . | . . . . . Data Cores Recovered . | . . . . . Used . | . . . . . Hacking Detections 7 | . 6 . 1 . Full Trace Events . | . . . . . Feedback Events . | . . . . . Feedback Blocked . | . . . . . Robot Schematics Acquired . | . . . . . Robots Built . | . . . . . Authchips . | . . . . . Time . | . . . . . Total Robot Build Rating . | . . . . . Part Schematics Acquired 1 | . 1 . . . Parts Built . | . . . . . Authchips . | . . . . . Time . | . . . . . Total Part Build Rating . | . . . . . Part Studies Acquired . | . . . . . Parts Repaired . | . . . . . Time . | . . . . . Parts Recycled . | . . . . . Recycled Matter . | . . . . . Retrieved Matter . | . . . . . Retrieved Components . | . . . . . Parts Scanalyzed . | . . . . . Part Schematics Acquired . | . . . . . Parts Damaged . | . . . . . Bothacking | -11 -10 -10 -7 -7 ------------ Run | Yrd Mat Sub Rec Scr Used RIF Installer . | . . . . . Robots Hacked . | . . . . . Non-combat . | . . . . . Combat . | . . . . . Robot Hacks Applied . | . . . . . Relay Couplers Released . | . . . . . Fabnet Peak Effective % . | . . . . . Robots Rewired . | . . . . . Allies Hacked . | . . . . . Hacks Repelled . | . . . . . Allies | -11 -10 -10 -7 -7 -------- Run | Yrd Mat Sub Rec Scr Total Allies . | . . . . . Largest Group . | . . . . . Highest-Rated Group . | . . . . . Highest-Rated Ally . | . . . . . Total Orders . | . . . . . Ally Attacks . | . . . . . Total Damage . | . . . . . Kills . | . . . . . Allies Corrupted . | . . . . . Allies Melted . | . . . . . Intel | -11 -10 -10 -7 -7 ------- Run | Yrd Mat Sub Rec Scr Active Infowar (turns) 1227 | 4 1216 7 . . Seismic 1227 | 4 1216 7 . . Robot Analysis Total 5 | . . . . 5 Derelict Logs Recovered 7 | . . 2 . 5 Drone Launches . | . . . . . Drone Recoveries . | . . . . . Exploration | -11 -10 -10 -7 -7 ------------- Run | Yrd Mat Sub Rec Scr Turns Passed 10593 | 111 1361 5040 1687 2394 Spaces Moved 4366 | 57 697 2351 516 745 Core 16 | 16 . . . . Treads 4350 | 41 697 2351 516 745 Legs . | . . . . . Wheels . | . . . . . Hover . | . . . . . Flight . | . . . . . Fastest Speed 50 | 50 160 160 320 320 Average Speed 213 | 129 160 174 320 320 Slowest Speed 320 | 160 160 320 320 320 Overloaded Moves . | . . . . . Propulsion Burnouts . | . . . . . Robots Hopped . | . . . . . Potential Cave-ins . | . . . . . Cave-ins Triggered . | . . . . . Exploration Rate (%) 69 | 3 96 89 87 74 Regions Visited 4 Branch Regions 3 Pre-discovered Areas 6 | . . . 4 2 Known Exits Taken 2 | . 1 1 . . Unknown Exits Taken 2 | 1 . . 1 . Scrap Searched 13 | . . 11 . 2 Spaces Dug 8 | . . 2 6 . Terrain Destroyed 10 | . . 4 6 . Melee 5 | . . . 5 . Projectile 5 | . . 4 1 . AOE . | . . . . . Terrain Rammed . | . . . . . Walls Destroyed . | . . . . . Machines Disabled . | . . . . . Actions | -11 -10 -10 -7 -7 --------- Run | Yrd Mat Sub Rec Scr Total 5306 | 82 840 3083 545 756 Wait 595 | . 43 543 8 1 Move 4363 | 57 696 2350 515 745 Hop . | . . . . . Pick Up 59 | 12 12 18 12 5 Fast Attach 7 | . . 7 . . Attach 13 | 7 . 6 . . Detach . | . . . . . Swap 40 | . 21 16 2 1 Drop 25 | . 11 9 1 4 Fire 171 | 6 48 116 1 . Melee 6 | . . 1 5 . Ram . | . . . . . Kick . | . . . . . Crush 10 | . 9 . 1 . Escape Stasis . | . . . . . Rewire . | . . . . . Trap . | . . . . . Miscellaneous 17 | . . 17 . . Route ------- -11/Scrapyard -10/Materials (discovered 5 exits: *Mat x3 / [*Min] / *Sub) -10/Subcaves (discovered 3 exits: *Mat x2 / *Rec) -7/Recycling (discovered 2 exits: [*Fac] / *Scr) -7/Scraptown (discovered 1 exit: [*Fac]) History --------- Turn | Location | Event 47 | -11/Scrapyard | Discovered new exit (range 16) 112 | -11/Scrapyard | Entered Materials 213 | -10/Materials | Discovered new exit (range 12) 300 | -10/Materials | Build established: Mutant 457 | -10/Materials | Discovered new exit (range 16) 777 | -10/Materials | Discovered new exit (range 9) 1004 | -10/Materials | Build established: Scavenger-Mutant 1041 | -10/Materials | Loaded intel: 6 trap records 1084 | -10/Materials | Learned location of 2 exits from Mines 1115 | -10/Materials | Learned Storage garrison access intel 1134 | -10/Materials | Learned 4 Recycling zone layouts 1142 | -10/Materials | Identified exit to Subcaves 1142 | -10/Materials | Identified exit to Materials 1142 | -10/Materials | Learned location of 1 exit from Materials 1159 | -10/Materials | Learned 4 Subcaves zone layouts 1184 | -10/Materials | Learned location of 2 exits from Subcaves 1473 | -10/Materials | Entered Subcaves 1474 | -10/Subcaves | Approached by a straggling Scientist 1474 | -10/Subcaves | Identified exit to Recycling 1474 | -10/Subcaves | Identified exit to Materials 1614 | -10/Subcaves | Ambushed by swarm of Subdwellers 1656 | -10/Subcaves | Lost 3 allies 1687 | -10/Subcaves | Visited 4L-MR0's lab 2213 | -10/Subcaves | Learned Materials terminal intel 2252 | -10/Subcaves | Discovered exit to Materials (range 4) 3141 | -10/Subcaves | Visited Clippyterm 3193 | -10/Subcaves | Learned Materials garrison access intel 3760 | -10/Subcaves | Ambushed by Subdweller buried in earth 4066 | -10/Subcaves | Build established: Mutant 4279 | -10/Subcaves | A swath of the cavern ceiling suddenly collapsed 4499 | -10/Subcaves | Core integrity fell below 50% 5248 | -10/Subcaves | Core integrity fell below 20% 5697 | -10/Subcaves | Build established: Scavenger-Mutant 6513 | -10/Subcaves | Entered Recycling 7116 | -7/Recycling | Build established: Mutant 7351 | -7/Recycling | Discovered new exit (range 10) 8123 | -7/Recycling | Scanned before Scraplab entrance 8168 | -7/Recycling | Entered Scraplab 8194 | -7/Recycling | Discovered new exit (range 2) 8200 | -7/Recycling | Entered Scraptown 8848 | -7/Scraptown | Visited Cyclists 8883 | -7/Scraptown | Visited Red Mages 8931 | -7/Scraptown | Visited Shadow of the Wyrm 8956 | -7/Scraptown | Visited Spacefarers 9027 | -7/Scraptown | Visited Symbiants 9049 | -7/Scraptown | Visited Awakened 9559 | -7/Scraptown | Heard Great Nut preacher, LISTEN AND RECITE! 9623 | -7/Scraptown | Discovered new exit (range 11) 9755 | -7/Scraptown | Scanned Subdweller tech in exchange for log data 9761 | -7/Scraptown | Learned location of Quarantine (-3) 9767 | -7/Scraptown | Learned location of Zion (-6) 9771 | -7/Scraptown | Learned Factory garrison access intel 9774 | -7/Scraptown | Learned location of 1 exit from Research 9925 | -7/Scraptown | Visited UFD Registry 9925 | -7/Scraptown | Registered with UFD as "Flashboard" 10002 | -7/Scraptown | Visited Derelict Rescue Squad 10047 | -7/Scraptown | Visited Junk Repository 10092 | -7/Scraptown | Visited Curators Association 10236 | -7/Scraptown | Visited Analyses Database 10303 | -7/Scraptown | Visited Observation Area 10338 | -7/Scraptown | Visited Modified Component R&D 10447 | -7/Scraptown | Visited Scrapoid Pod Storage 10504 | -7/Scraptown | Visited Scrap Suit Storage 10594 | -7/Scraptown | Self-destructed Last Messages --------------- Downloading analysis... X-82 Rainmaker Tier: 8 X-series specialists each possess unique loadouts for a specific purpose. The X-82 Rainmaker's twin heavy flak cannons are deadly against either lightly armored or numerous clustered targets. It carries a high-capacity Matter Pod to supply them with enough ammunition for continuous firing in prolonged confrontations. LOCAL NARROWCAST: Observation Area. LOCAL NARROWCAST: Modified Component R&D. LOCAL NARROWCAST: Scrapoid Pod Storage. FI-G7T(j): Have you seen a test firing of the Science Guys' Voltaic Drivehammer? Oh. My. God. LOCAL NARROWCAST: Scrap Suit Storage. Map ----- +----------------------------------------------------+ | """"""#?????????????????????????????????????????? | | #?????????????????????????????????????????? | | #?????????????????????????????????????????? | | #?????????????????????????????????????????? | | """#####?????????????????????????????????????????? | | "#?????????????????????????????????????????????? | | ""#?????????????????????????????????????????????? | | """#?????????????????????????????????????????????? | | """#?????????????????????????????????????????????? | | """#?????????????????????????????????????????????? | | ##???????????????????????????????????????????????? | | ????????????????????????????????????#######??????? | | ????????????????????????????????????" !"#??????? | | #####???????????????????????????????#" "???????? | | """""????????????????????????????####X ##??????? | | " ?? "#????????????##?????????#" !"#??????? | | " "#????????????#X?????????#"! !"######## | | " """ "#????????????# ?????????#" !"##"""""" | | " """ "#????????????# ?????????#"! !"##" ! | | " """ "#???????????## ###??????#" "##" | | " ?????????????? x ???????## ###" | | " ????????????????? ???????# ##" | | " ???????????????????# #???????### ########### # | | # ##########???????##### ########### ########### # | | #???????#"""" """"""""""" """"""""""" " | | #???????#" @ | | #???????#" | | #???????#" | | #???????#" | | ## #???????#" | | ?# #??????"" """""""""""""""""""""""" | | ?# #??????"" """""""""""""""""""""""" | | ?# #?????"""p ""###### ############## | | ?# #?????""" ""#???? ????????????? | | ?# #??????"" ""????? ????????????? | | ?# ###????"" ""?????" "????????????? | | ?# ""#"#??"" ""#????? ?????????????# | | ?# """"#???" ""#???????????????###### | | ?# ""###???#" "" ?????????????? | | ?# ###?????#" "" ????????????? | | ?# #########" ""#???????????????###### | | ?# ""#????? ?????????????# | | ?# ""#????" "????????????? | | ?# ""#???? ????????????? | | ?# ""#???? ????????????? | | ## ""###### ############## | | """""""""""""""""""""""" | | """""""""""""""""""""""" | | | | | +----------------------------------------------------+ Best States ------------- Heat Dissipation 25 Coolant Potential 100 Energy Generation 10 Energy Capacity 250 Matter Stores 300 Matter Capacity 300 Sight Range 16 Terrain Scan Density 10 Armor Coverage 800 Resistance: KI 30 Evasion (%) 50 Recoil Reduction 2 Item Schematics ----------------- Huge Storage Unit | -10/Materials | Hacked Robot Schematics ------------------ None Fabricated ------------ Nothing Repaired ---------- Nothing Studied --------- None Alien Tech Used ----------------- None Achievements -------------- None Challenges ------------ None Game ------ Seed TachyonBlastFemtoactuators Manual? 0 Play Time 00:35:12 Cumulative 592.7 hours Start 2026.08.30 @ 19:07:03 End 2026.08.30 @ 19:43:26 Sessions 1 Manual Loads 0 Difficulty Rogue Special Mode None Game No. 331 Rogue 331 Adventurer 0 Explorer 0 Win Type - Total 40 Types 20/2/8/2/1/1/1/2/1/2 Lore% 97 Gallery% 93 Achievement% 88 Wizard Run 0 Options --------- Layout 1 ASCII 0 Keyboard 0 Movement Numpad Keybinds 0 Fullscreen 1 Font 24/Proggy Map View 50x35 Zoom Use 0% Tactical HUD 0 Map Filters NONE Filters NONE Steam 1 RUN: 6802856e-492e-4cb9-ad48-6fcd26bd99fe